Cogmind - Beta 13 *** ADVENTURER MODE // 2024.04.03 @ 17:56:30 Player: Plonker Result: Destroyed by as-54655 with Assembled Rifle Performance ------------- Evolutions (1) 500 Regions Visited (3) 600 Robots Destroyed (4) 20 Value Destroyed (75) 75 Prototype IDs (0) 0 Alien Tech Used (0) 0 Bonus (200) 200 TOTAL SCORE: 1395 Bonus ------- Pacifist 200 Cogmind --------- Core Integrity 0/400 Matter 207/300 Energy 100/100 System Corruption 5% Temperature Cool (0) Movement Walking (120) Location -9/Mines Parts ------- > --- POWER (1) -------- (None) > --- PROPULSION (2) --- Flexi-carbon Leg > --- UTILITY (4) ------ Improved Targeting Computer > --- WEAPON (2) ------- (None) > --- INVENTORY (5) ---- (None) Peak State ------------ > --- POWER ------------ Light Ion Engine > --- PROPULSION ------- Compact Wheel Compact Wheel > --- UTILITY ---------- Small Storage Unit Structural Scanner Improved Targeting Computer Light Armor Plating > --- WEAPON ----------- Particle Gun Light Assault Rifle > --- INVENTORY -------- Ion Engine Grenade Launcher [Rating: 11] Favorites ----------- Power Light Ion Engine Engine Light Ion Engine Propulsion Compact Wheel Leg Flexi-carbon Leg Wheel Compact Wheel Flight Unit Flight Unit Utility Small Storage Unit Device Structural Scanner Storage Small Storage Unit Processor Improved Targeting Computer Protection Light Armor Plating Weapon Light Assault Rifle Energy Gun Small Laser Ballistic Gun Light Assault Rifle Launcher Grenade Launcher Slashing Weapon Mining Claw Build | -11 -10 -9 -9 ------- Run | Yrd Mat Mat Min Slots Evolved 2 | . . 2 . Power . | . . . . Propulsion . | . . . . Utility 2 | . . 2 . Weapon . | . . . . Parts Attached 19 | 6 1 11 1 Power 3 | 1 . 2 . Engine 3 | 1 . 2 . Core . | . . . . Reactor . | . . . . Propulsion 6 | 2 . 3 1 Treads . | . . . . Leg 1 | . . . 1 Wheel 3 | 2 . 1 . Hover . | . . . . Flight 2 | . . 2 . Utility 4 | 1 1 2 . Device 1 | . 1 . . Storage 1 | 1 . . . Processor 1 | . . 1 . Hackware . | . . . . Protection 1 | . . 1 . Artifact . | . . . . Weapon 6 | 2 . 4 . Energy Gun 2 | 1 . 1 . Energy Cannon . | . . . . Ballistic Gun 2 | 1 . 1 . Ballistic Cannon . | . . . . Launcher 1 | . . 1 . Special Weapon . | . . . . Impact Weapon . | . . . . Slashing Weapon 1 | . . 1 . Piercing Weapon . | . . . . Special Melee Weapon . | . . . . Unidentified Prototypes . | . . . . Parts Lost 6 | . . 2 4 Power 2 | . . 1 1 Propulsion 3 | . . 1 2 Utility 1 | . . . 1 Weapon . | . . . . Highest Loss Streak 4 | . . 1 4 To Critical Strikes . | . . . . Average Slot Usage (%) 82 | . 96 86 33 Engine 10 | . 14 10 3 Wheel 17 | . 28 15 . Flight 2 | . . 1 11 Device 9 | . 10 11 3 Storage 10 | . 14 10 . Processor 6 | . . 10 11 Protection 3 | . . 7 . Energy Gun 10 | . 14 10 . Ballistic Gun 7 | . 14 4 . Slashing Weapon 2 | . . 5 . Naked Turns . | . . . . Heaviest Build 17 | 10 11 17 4 Greatest Support 32 | 32 32 32 20 Greatest Overweight (x) 1 | . . 1 . Average Overweight (x) . | . . . . Largest Inventory Capacity 8 | 8 8 8 5 Average Capacity 7 | 6 8 7 5 Most Carried 4 | 3 3 4 1 Average Carried 1 | . 1 2 . Final Capacity 8 | 8 8 5 5 Final Carried 3 | . 3 . . Class Distribution -------------------- 100% | Mutant Dominant Class ---------------- Mutant | -10/Materials Mutant | -9/Materials Mutant | -9/Mines Resources | -11 -10 -9 -9 ----------- Run | Yrd Mat Mat Min Matter Collected 283 | 182 . 49 52 Remotely . | . . . . Salvage Created 95 | . . 95 . Parts 6 | . . 6 . Haulers Intercepted . | . . . . Recyclers Shooed . | . . . . Parts Field Recycled . | . . . . Retrieved Matter . | . . . . Parts Self-Destructed . | . . . . Prevented . | . . . . Kills | -11 -10 -9 -9 ------- Run | Yrd Mat Mat Min Combat Hostiles Destroyed 4 | . . 4 . Guns 4 | . . 4 . Classes Destroyed 2 | . . 2 . Swarmer 3 | . . 3 . Sentry 1 | . . 1 . Best Kill Streak 3 | . . 3 . Combat Bots Only 3 | . . 3 . Max Kills in Single Turn 1 | . . 1 . Gunslinging . | . . . . Exploded . | . . . . Melee . | . . . . Uniques/NPCs Destroyed . | . . . . Combat | -11 -10 -9 -9 -------- Run | Yrd Mat Mat Min Hostile Shots Fired 104 | . . 29 75 Missed 38 | . . 7 31 Damage Taken 808 | . . 246 562 Core 408 | . . 59 349 Absorbed by Shields . | . . . . Ignored by Resistances 230 | . . 72 158 Core Remaining (%) 100 | 100 100 . . Volleys Fired 17 | . 4 13 . Largest 2 | . 2 1 . Hottest 65 | . 60 65 . Shots Fired 21 | . 8 13 . Gun 21 | . 8 13 . Cannon . | . . . . Launcher . | . . . . Special . | . . . . Kinetic 4 | . 4 . . Thermal 17 | . 4 13 . Explosive . | . . . . Electromagnetic . | . . . . Robot Hit Streak 8 | . 8 7 . Robot Miss Streak 2 | . . 2 . Penetration Max . | . . . . Secondary Targets . | . . . . Shots Hit Robots 18 | . 8 10 . Core Hits 6 | . 1 5 . Critical Kills . | . . . . Critical Parts Destroyed 1 | . 1 . . Critical Strikes 1 | . 1 . . Destroy 1 | . 1 . . Melee Attacks . | . . . . Impact . | . . . . Slashing . | . . . . Piercing . | . . . . Sneak Attacks . | . . . . Combat Hostiles . | . . . . Follow-up Attacks . | . . . . Damage Inflicted 227 | . 71 152 4 Guns 223 | . 71 152 . Cannons . | . . . . Explosions . | . . . . Melee . | . . . . Ramming 4 | . . . 4 Kinetic 29 | . 29 . . Thermal 194 | . 42 152 . Explosive . | . . . . Electromagnetic . | . . . . Impact . | . . . . Slashing . | . . . . Piercing . | . . . . Highest Corruption 5 | . . . 5 Average Corruption 5 | . . . 5 Corruption Purged . | . . . . Corruption Blocked . | . . . . Effects 3 | . . . 3 Matter Fused 2 | . . . 2 Heat Flow Errors 1 | . . . 1 Overload Shots . | . . . . Overflow Damage . | . . . . Projectiles . | . . . . Explosions . | . . . . Melee . | . . . . Knockbacks . | . . . . Impact . | . . . . Kinetic . | . . . . Secondary . | . . . . Self-Inflicted Damage . | . . . . Shots . | . . . . Rammed . | . . . . Targets Rammed 1 | . . . 1 Kicked 1 | . . . 1 Crushed . | . . . . Highest Temperature 151 | . 20 138 151 Average Temperature 52 | . 15 57 58 Received Heat Transfer 170 | . . 81 89 Siege Activations . | . . . . Robots Corrupted . | . . . . Combat Hostiles . | . . . . Parts Fried . | . . . . Impact Corruptions . | . . . . Robots Melted . | . . . . Combat Hostiles . | . . . . Parts Melted 1 | . . 1 . Heat Transferred 470 | . 100 370 . Parts Sabotaged . | . . . . Parts Stolen . | . . . . Parts Stripped . | . . . . Power Chain Reactions . | . . . . Alert | -11 -10 -9 -9 ------- Run | Yrd Mat Mat Min Peak Influence 155 | . . 155 116 Initial 51 | . . . 51 Average 27 | . . 33 89 Maximum Alert Level . | . . . . Low Security (%) 100 | 100 100 100 100 Level 1 . | . . . . Level 2 . | . . . . Level 3 . | . . . . Level 4 . | . . . . Level 5 . | . . . . High Security . | . . . . Max Security . | . . . . Squads Dispatched . | . . . . Investigation . | . . . . Extermination . | . . . . Reinforcement . | . . . . Assault . | . . . . Garrison . | . . . . Intercept . | . . . . Searches Triggered . | . . . . Construction Impeded . | . . . . Haulers Reinforced . | . . . . Active Scanning Responses . | . . . . Cargo Convoy Interrupts . | . . . . Stealth | -11 -10 -9 -9 --------- Run | Yrd Mat Mat Min Distress Signals 1 | . . 1 . Communications Jammed . | . . . . Distress Signals . | . . . . Times Spotted 33 | . . 10 23 Peak Tracking Total 16 | . . 3 16 Tactical Retreats 3 | . . . 3 Traps | -11 -10 -9 -9 ------- Run | Yrd Mat Mat Min Traps Triggered 2 | . . 2 . Indirectly . | . . . . Trap Hack Attempts . | . . . . Triggered . | . . . . Disarmed . | . . . . Reprogrammed . | . . . . Reused . | . . . . Traps Extracted . | . . . . Installed . | . . . . Triggered . | . . . . Machines | -11 -10 -9 -9 ---------- Run | Yrd Mat Mat Min Machines Disabled . | . . . . Max in Single Turn . | . . . . Machines Repaired . | . . . . Machines Dismantled . | . . . . Machines Sabotaged . | . . . . Overloaded Fab Kills . | . . . . Hacking | -11 -10 -9 -9 --------- Run | Yrd Mat Mat Min Machines Accessed 3 | . 3 . . Terminals 3 | . 3 . . Fabricators . | . . . . Repair Stations . | . . . . Recycling Units . | . . . . Scanalyzers . | . . . . Garrison Access . | . . . . Total Hacks 7 | . 7 . . Successful 2 | . 2 . . Failed 5 | . 5 . . Catastrophic 1 | . 1 . . Database Lockouts . | . . . . Manual 3 | . 3 . . Terminals 7 | . 7 . . Fabricators . | . . . . Repair Stations . | . . . . Recycling Units . | . . . . Scanalyzers . | . . . . Garrison Access . | . . . . Terminal Hacks 2 | . 2 . . Robot Analysis 1 | . 1 . . Zone Layout 1 | . 1 . . Fabricator Hacks . | . . . . Repair Station Hacks . | . . . . Recycling Unit Hacks . | . . . . Scanalyzer . | . . . . Garrison Access Hacks . | . . . . Unauthorized Hacks . | . . . . Terminals . | . . . . Fabricators . | . . . . Repair Stations . | . . . . Recycling Units . | . . . . Scanalyzers . | . . . . Garrison Access . | . . . . Data Cores Recovered . | . . . . Used . | . . . . Hacking Detections 1 | . 1 . . Full Trace Events . | . . . . Feedback Events . | . . . . Feedback Blocked . | . . . . Robot Schematics Acquired . | . . . . Robots Built . | . . . . Authchips . | . . . . Time . | . . . . Total Robot Build Rating . | . . . . Part Schematics Acquired . | . . . . Parts Built . | . . . . Authchips . | . . . . Time . | . . . . Total Part Build Rating . | . . . . Parts Repaired . | . . . . Time . | . . . . Parts Recycled . | . . . . Recycled Matter . | . . . . Retrieved Matter . | . . . . Retrieved Components . | . . . . Parts Scanalyzed . | . . . . Part Schematics Acquired . | . . . . Parts Damaged . | . . . . Bothacking | -11 -10 -9 -9 ------------ Run | Yrd Mat Mat Min Used RIF Installer . | . . . . Robots Hacked . | . . . . Non-combat . | . . . . Combat . | . . . . Robot Hacks Applied . | . . . . Relay Couplers Released . | . . . . Fabnet Peak Effective % . | . . . . Robots Rewired . | . . . . Allies Hacked . | . . . . Hacks Repelled . | . . . . Allies | -11 -10 -9 -9 -------- Run | Yrd Mat Mat Min Total Allies . | . . . . Largest Group . | . . . . Highest-Rated Group . | . . . . Highest-Rated Ally . | . . . . Total Orders . | . . . . Ally Attacks . | . . . . Total Damage . | . . . . Kills . | . . . . Allies Corrupted . | . . . . Allies Melted . | . . . . Intel | -11 -10 -9 -9 ------- Run | Yrd Mat Mat Min Robot Analysis Total 1 | . 1 . . Derelict Logs Recovered 1 | . . . 1 Drone Launches . | . . . . Drone Recoveries . | . . . . Exploration | -11 -10 -9 -9 ------------- Run | Yrd Mat Mat Min Turns Passed 831 | 43 306 354 128 Spaces Moved 812 | 34 274 279 225 Core 10 | 4 . . 6 Treads . | . . . . Legs 46 | . . . 46 Wheels 550 | 30 274 246 . Hover . | . . . . Flight 206 | . . 33 173 Fastest Speed 37 | 50 100 37 37 Average Speed 86 | 94 100 97 54 Slowest Speed 120 | 100 100 117 120 Overloaded Moves . | . . . . Propulsion Burnouts . | . . . . Robots Hopped 5 | . . . 5 Cave-ins Triggered . | . . . . Exploration Rate (%) 33 | 4 55 33 41 Regions Visited 3 Branch Regions 1 Pre-discovered Areas 1 | . . . 1 Known Exits Taken . | . . . . Unknown Exits Taken 3 | 1 1 1 . Scrap Searched 1 | . . . 1 Spaces Dug . | . . . . Terrain Destroyed . | . . . . Melee . | . . . . Projectile . | . . . . AOE . | . . . . Terrain Rammed . | . . . . Walls Destroyed . | . . . . Machines Disabled . | . . . . Actions | -11 -10 -9 -9 --------- Run | Yrd Mat Mat Min Total 918 | 45 298 350 225 Wait 49 | . 16 31 2 Move 799 | 33 273 278 215 Hop 5 | . . . 5 Pick Up 19 | 6 4 8 1 Fast Attach . | . . . . Attach 16 | 6 1 8 1 Detach . | . . . . Swap 3 | . . 3 . Drop 9 | . . 9 . Fire 17 | . 4 13 . Melee . | . . . . Ram . | . . . . Kick 1 | . . . 1 Crush . | . . . . Escape Stasis . | . . . . Rewire . | . . . . Trap . | . . . . Miscellaneous . | . . . . Route ------- -11/Scrapyard -10/Materials -9/Materials -9/Mines (discovered 1 exit: Mat) History --------- Turn | Location | Event 16 | -11/Scrapyard | Discovered new exit (range 16) 44 | -11/Scrapyard | Entered Materials 311 | -10/Materials | Build established: Mutant 332 | -10/Materials | Discovered new exit (range 7) 350 | -10/Materials | Entered another Materials area 350 | -9/Materials | Evolved 2 slots: Utility x2 693 | -9/Materials | Discovered new exit (range 16) 704 | -9/Materials | Entered Mines 721 | -9/Mines | Assembled infested the area 726 | -9/Mines | Assisted by a Guerilla fighting off Assembled 726 | -9/Mines | Identified exit to Materials 772 | -9/Mines | Core integrity fell below 50% 794 | -9/Mines | Learned location of Storage (-7) 802 | -9/Mines | Lost 4 parts (1p2n1u) 813 | -9/Mines | Core integrity fell below 20% 832 | -9/Mines | Destroyed by as-54655 with Assembled Rifle Last Messages --------------- 00775_ as-58290 destroyed. 00777_ D-53 Grenadier destroyed. 00777_ as-13319 destroyed. 00777_ as-64483 destroyed. 00779_ D-53 Grenadier suffers critical hit (Burn). 00794_ A derelict emerges from the shadows: "Are any of them following you? I'm here trying to lose some heat after our second raid on Storage failed. Whatever you do stay away from that place, they've tightened security following our previous successful raids." World map updated: -7/Storage. 00796_ SB-H7Q(g): "We scattered so the Unaware couldn't effectively use their advantage in numbers, and I suggest you do the same." 00796_ SB-H7Q(g) slips back into the shadows. 00807_ Kicked as-44354. 00807_ as-44354 destroyed. 00827_ System corrupted: Matter fused (-6). Map ----- +----------------------------------------------------+ | | | | | | | | | | | | | ?????????????????????????????????????????????????? | | ?????????????????????????????????????????????????? | | ????????????????????########?????????????????????? | | ???????????????????## ##???????????????????### | | ???????????????????# ##?????????????????## | | ???????????????????# ###########???????# | | ???????????????????# ##??????# | | ???????????????????## #??????# | | ????????????????????## #### #??????## | | ????????###??????????## ##??# #???????# | | ??????? ###??????????# ##???# #??????## | | ??????? ##??????????## ##????## ##??????# | | ??????? ##???????????## ###??????####???????# | | ??????? ###??????????## ##??????????????????# | | ??????? ###??????????## ##??????????????????## | | ??????? ##??????????##a##??????????????????## | | #?????? ##############a##????####??????????# | | #????? ##############a####?## ##????????## | | #?????## ### !% #### #???????## | | #???#### ### ###########@ ## #??????## | | #??##### ### ########### ??????# | | ##?### ### ##??####### # #????# | | ##### ### ##??####### % ???## # | | ##### #### ##?### *% # # #?## ### | | #### #### ###### % # # ?## ##?? | | ##### ### # % ## ##??? | | #### ####### ## ####### ##### #???? | | ###### ###### ####????##??# #???? | | ####### ##??### ###????????# #???? | | ###??## ##??### ###?????????#" ##???? | | ##???## ##??### ####?????? ##????? | | ##???## ##?#### ####???? #?????? | | ##???##$##?### ####?????? ### ### ##?????? | | ##???## ##?## ###??????# ??#####?####??????? | | ##???## ##?## ##???????## ???????????????????? | | ##????? ??### ##????????###????????????????????? | | #????? ??### ##???????????????????????????????? | | #????# ?## ##???????????????????????????????? | | ##????###?## ##???????????????????????????????? | | ##????### ### ###???????????????????????????????? | | #???????? #### ##???????????????????????????????? | | ??????### # ## ##???????????????????????????????? | | " ## # # ##???????????????????????????????? | | "%" ##???????????????????????????????? | +----------------------------------------------------+ Best States ------------- Heat Dissipation 28 Energy Generation 10 Energy Capacity 250 Matter Stores 222 Matter Capacity 300 Sight Range 16 Terrain Scan Density 10 Armor Coverage 150 Resistance: KI 20 Resistance: TH 20 Resistance: EX 20 Resistance: EM 20 Resistance: I 20 Resistance: S 20 Resistance: P 20 Evasion (%) 62 Targeting Accuracy 6 Offensive Hacking 10 Item Schematics ----------------- None Robot Schematics ------------------ None Fabricated ------------ Nothing Alien Tech Used ----------------- None Achievements -------------- None Challenges ------------ None Game ------ Seed AlertDiametricArchive Manual? 0 Play Time 00:20:19 Cumulative 17.9 hours Start 2024.04.03 @ 17:37:20 End 2024.04.03 @ 17:56:30 Sessions 1 Manual Loads 0 Difficulty Adventurer Special Mode None Game No. 16 Rogue 0 Adventurer 16 Explorer 0 Win Type - Total 0 Types 0/0/0/0/0/0/0/0/0 Lore% 14 Gallery% 21 Achievement% 17 Wizard Run 0 Options --------- Layout 1 ASCII 0 Keyboard 0 Movement Mouse Keybinds 0 Fullscreen 2 Font 16/Tamsyn Map View 25x20 Zoom Use 100% Tactical HUD 1 Map Filters NONE Filters NONE Steam SD RUN: 2bcdc638-4b8f-4480-8bca-8150411046c1